Cogmind - Beta 13 @@@ ROGUE MODE // 2024.04.01 @ 16:19:19 Player: Roland Result: Destroyed by 46-ZMM(R) with Subdweller Machine Gun Performance ------------- Evolutions (0) 0 Regions Visited (3) 600 Robots Destroyed (7) 35 Value Destroyed (241) 241 Prototype IDs (0) 0 Alien Tech Used (0) 0 Bonus (0) 0 TOTAL SCORE: 876 Bonus ------- None Cogmind --------- Core Integrity 0/250 Matter 283/300 Energy 200/200 System Corruption 0% Temperature Cool (0) Movement Core (250) Ox4 Location -10/Subcaves Parts ------- > --- POWER (1) -------- Subdweller Power Source > --- PROPULSION (2) --- Wheel > --- UTILITY (2) ------ Signal Interpreter > --- WEAPON (2) ------- Bore Cannon > --- INVENTORY (5) ---- Medium Storage Unit Experimental Sensor Array Targeting Computer Peak State ------------ > --- POWER ------------ Light Nuclear Core > --- PROPULSION ------- Wheel Wheel > --- UTILITY ---------- Improved Heat Sink Signal Interpreter > --- WEAPON ----------- Particle Gun Assault Rifle > --- INVENTORY -------- Ion Engine Huge Storage Unit Grenade Launcher [Rating: 12] Favorites ----------- Power Ion Engine Engine Ion Engine Power Core Light Nuclear Core Propulsion Wheel Treads Light Treads Wheel Wheel Utility Improved Heat Sink Device Improved Heat Sink Processor Signal Interpreter Weapon Particle Gun Energy Gun Particle Gun Ballistic Gun Assault Rifle Ballistic Cannon Bore Cannon Launcher Grenade Launcher Build | -11 -10 -10 -10 ------- Run | Yrd Mat Min Sub Slots Evolved . | . . . . Power . | . . . . Propulsion . | . . . . Utility . | . . . . Weapon . | . . . . Parts Attached 23 | 6 7 7 3 Power 4 | 1 1 1 1 Engine 3 | 1 . 1 1 Core 1 | . 1 . . Reactor . | . . . . Propulsion 7 | 2 1 3 1 Treads 1 | . . 1 . Leg . | . . . . Wheel 6 | 2 1 2 1 Hover . | . . . . Flight . | . . . . Utility 2 | . 2 . . Device 1 | . 1 . . Storage . | . . . . Processor 1 | . 1 . . Hackware . | . . . . Protection . | . . . . Artifact . | . . . . Weapon 10 | 3 3 3 1 Energy Gun 3 | 1 1 1 . Energy Cannon . | . . . . Ballistic Gun 4 | 2 1 1 . Ballistic Cannon 1 | . . . 1 Launcher 2 | . 1 1 . Special Weapon . | . . . . Impact Weapon . | . . . . Slashing Weapon . | . . . . Piercing Weapon . | . . . . Special Melee Weapon . | . . . . Unidentified Prototypes . | . . . . Parts Lost 8 | . 1 3 4 Power 2 | . 1 1 . Propulsion 2 | . . 1 1 Utility 1 | . . . 1 Weapon 3 | . . 1 2 Highest Loss Streak 2 | . 1 2 2 To Critical Strikes . | . . . . Average Slot Usage (%) 85 | . 85 85 79 Engine 10 | . 2 13 14 Core 3 | . 10 . . Treads 4 | . . 7 . Wheel 15 | . 28 6 26 Device 12 | . 10 14 12 Processor 11 | . 4 14 14 Energy Gun 11 | . 10 13 4 Ballistic Gun 6 | . 17 1 4 Launcher 7 | . . 12 . Naked Turns . | . . . . Heaviest Build 14 | 6 11 12 14 Greatest Support 20 | 20 20 20 20 Greatest Overweight (x) 4 | . . 3 4 Average Overweight (x) . | . . . . Largest Inventory Capacity 5 | 5 5 5 5 Average Capacity 5 | 5 5 5 5 Most Carried 5 | 2 5 5 5 Average Carried 2 | . 2 2 3 Final Capacity 5 | 5 5 5 5 Final Carried 3 | . 2 3 3 Class Distribution -------------------- 73% | Scavenger-Mutant 26% | Mutant Dominant Class ---------------- Mutant | -10/Materials Scavenger-Mutant | -10/Mines Scavenger-Mutant | -10/Subcaves Resources | -11 -10 -10 -10 ----------- Run | Yrd Mat Min Sub Matter Collected 511 | 254 90 157 10 Remotely . | . . . . Salvage Created 225 | 45 128 52 . Parts 8 | 3 4 1 . Haulers Intercepted . | . . . . Recyclers Shooed . | . . . . Parts Field Recycled . | . . . . Retrieved Matter . | . . . . Parts Self-Destructed 6 | . . . 6 Prevented . | . . . . Kills | -11 -10 -10 -10 ------- Run | Yrd Mat Min Sub Combat Hostiles Destroyed 7 | 1 3 3 . Guns 5 | 1 3 1 . AOE 2 | . . 2 . Classes Destroyed 1 | 1 . . . Grunt 6 | 1 3 2 . Best Kill Streak 2 | 1 2 2 . Combat Bots Only 2 | 1 2 2 . Max Kills in Single Turn 1 | 1 1 1 . Gunslinging . | . . . . Exploded 1 | . . 1 . Melee . | . . . . Uniques/NPCs Destroyed 1 | . . 1 . YI-UF0 (-10/Mines) Combat | -11 -10 -10 -10 -------- Run | Yrd Mat Min Sub Hostile Shots Fired 64 | 5 25 18 16 Missed 11 | . 4 3 4 Damage Taken 1102 | 56 256 534 256 Core 250 | . 69 132 49 Absorbed by Shields . | . . . . Core Remaining (%) 100 | 100 . . . Volleys Fired 31 | 4 18 6 3 Largest 2 | 2 2 2 2 Hottest 85 | 60 85 85 85 Shots Fired 60 | 8 36 12 4 Gun 56 | 8 36 9 3 Cannon 1 | . . . 1 Launcher 3 | . . 3 . Special . | . . . . Kinetic 43 | 4 31 6 2 Thermal 10 | . 5 3 2 Explosive 3 | . . 3 . Electromagnetic 4 | 4 . . . Robot Hit Streak 8 | 3 8 6 3 Robot Miss Streak 3 | 2 3 2 1 Penetration Max . | . . . . Secondary Targets 1 | . 1 . . Max Gunslinging Chain 1 | . 1 . . Shots Hit Robots 37 | 4 22 8 3 Core Hits 13 | 2 6 5 . Critical Kills . | . . . . Critical Parts Destroyed . | . . . . Critical Strikes . | . . . . Melee Attacks . | . . . . Impact . | . . . . Slashing . | . . . . Piercing . | . . . . Sneak Attacks . | . . . . Combat Hostiles . | . . . . Follow-up Attacks . | . . . . Damage Inflicted 612 | 43 246 264 59 Guns 384 | 43 246 65 30 Cannons 29 | . . . 29 Explosions 199 | . . 199 . Melee . | . . . . Ramming . | . . . . Kinetic 319 | 13 213 50 43 Thermal 64 | . 33 15 16 Explosive 199 | . . 199 . Electromagnetic 30 | 30 . . . Impact . | . . . . Slashing . | . . . . Piercing . | . . . . Highest Corruption . | . . . . Average Corruption . | . . . . Corruption Purged . | . . . . Corruption Blocked . | . . . . Overload Shots . | . . . . Overflow Damage 52 | . . 52 . Projectiles . | . . . . Explosions 52 | . . 52 . Melee . | . . . . Knockbacks . | . . . . Impact . | . . . . Kinetic . | . . . . Secondary . | . . . . Self-Inflicted Damage 116 | . . 116 . Shots 3 | . . 3 . Rammed 1 | . . 1 . Targets Rammed 1 | . . 1 . Kicked . | . . . . Crushed . | . . . . Highest Temperature 50 | 50 15 . . Average Temperature 15 | 25 7 . . Received Heat Transfer 288 | 30 147 27 84 Siege Activations . | . . . . Robots Corrupted . | . . . . Combat Hostiles . | . . . . Parts Fried . | . . . . Impact Corruptions . | . . . . Robots Melted . | . . . . Combat Hostiles . | . . . . Parts Melted . | . . . . Heat Transferred 148 | . 74 37 37 Parts Sabotaged . | . . . . Parts Stolen . | . . . . Parts Stripped . | . . . . Power Chain Reactions . | . . . . Alert | -11 -10 -10 -10 ------- Run | Yrd Mat Min Sub Peak Influence 132 | 20 132 59 . Initial 13 | . 13 . . Average 40 | 7 71 27 . Maximum Alert Level . | . . . . Low Security (%) 100 | 100 100 100 . Level 1 . | . . . . Level 2 . | . . . . Level 3 . | . . . . Level 4 . | . . . . Level 5 . | . . . . High Security . | . . . . Max Security . | . . . . Squads Dispatched 2 | . 2 . . Investigation 1 | . 1 . . Extermination . | . . . . Reinforcement 1 | . 1 . . Assault . | . . . . Garrison . | . . . . Intercept . | . . . . Searches Triggered . | . . . . Construction Impeded . | . . . . Haulers Reinforced . | . . . . Active Scanning Responses . | . . . . Cargo Convoy Interrupts . | . . . . Stealth | -11 -10 -10 -10 --------- Run | Yrd Mat Min Sub Distress Signals . | . . . . Communications Jammed . | . . . . Distress Signals . | . . . . Times Spotted 21 | 1 5 3 12 Peak Tracking Total 4 | 1 2 2 4 Tactical Retreats . | . . . . Traps | -11 -10 -10 -10 ------- Run | Yrd Mat Min Sub Traps Triggered 1 | . 1 . . Indirectly . | . . . . Trap Hack Attempts . | . . . . Triggered . | . . . . Disarmed . | . . . . Reprogrammed . | . . . . Reused . | . . . . Traps Extracted . | . . . . Installed . | . . . . Triggered . | . . . . Machines | -11 -10 -10 -10 ---------- Run | Yrd Mat Min Sub Machines Disabled 1 | . 1 . . Max in Single Turn 1 | . 1 . . Machines Repaired . | . . . . Machines Dismantled . | . . . . Machines Sabotaged . | . . . . Overloaded Fab Kills . | . . . . Hacking | -11 -10 -10 -10 --------- Run | Yrd Mat Min Sub Machines Accessed 3 | . 3 . . Terminals 3 | . 3 . . Fabricators . | . . . . Repair Stations . | . . . . Recycling Units . | . . . . Scanalyzers . | . . . . Garrison Access . | . . . . Total Hacks 5 | . 5 . . Successful 2 | . 2 . . Failed 3 | . 3 . . Catastrophic 1 | . 1 . . Database Lockouts . | . . . . Manual . | . . . . Terminals 5 | . 5 . . Fabricators . | . . . . Repair Stations . | . . . . Recycling Units . | . . . . Scanalyzers . | . . . . Garrison Access . | . . . . Terminal Hacks 2 | . 2 . . Emergency Access Points 1 | . 1 . . Alert Level 1 | . 1 . . Fabricator Hacks . | . . . . Repair Station Hacks . | . . . . Recycling Unit Hacks . | . . . . Scanalyzer . | . . . . Garrison Access Hacks . | . . . . Unauthorized Hacks . | . . . . Terminals . | . . . . Fabricators . | . . . . Repair Stations . | . . . . Recycling Units . | . . . . Scanalyzers . | . . . . Garrison Access . | . . . . Data Cores Recovered . | . . . . Used . | . . . . Hacking Detections 2 | . 2 . . Full Trace Events 1 | . 1 . . Feedback Events . | . . . . Feedback Blocked . | . . . . Robot Schematics Acquired . | . . . . Robots Built . | . . . . Authchips . | . . . . Time . | . . . . Total Robot Build Rating . | . . . . Part Schematics Acquired . | . . . . Parts Built . | . . . . Authchips . | . . . . Time . | . . . . Total Part Build Rating . | . . . . Parts Repaired . | . . . . Time . | . . . . Parts Recycled . | . . . . Recycled Matter . | . . . . Retrieved Matter . | . . . . Retrieved Components . | . . . . Parts Scanalyzed . | . . . . Part Schematics Acquired . | . . . . Parts Damaged . | . . . . Bothacking | -11 -10 -10 -10 ------------ Run | Yrd Mat Min Sub Used RIF Installer . | . . . . Robots Hacked . | . . . . Non-combat . | . . . . Combat . | . . . . Robot Hacks Applied . | . . . . Relay Couplers Released . | . . . . Fabnet Peak Effective % . | . . . . Robots Rewired . | . . . . Allies Hacked . | . . . . Hacks Repelled . | . . . . Allies | -11 -10 -10 -10 -------- Run | Yrd Mat Min Sub Total Allies . | . . . . Largest Group . | . . . . Highest-Rated Group . | . . . . Highest-Rated Ally . | . . . . Total Orders . | . . . . Ally Attacks . | . . . . Total Damage . | . . . . Kills . | . . . . Allies Corrupted . | . . . . Allies Melted 1 | . . . 1 Intel | -11 -10 -10 -10 ------- Run | Yrd Mat Min Sub Robot Analysis Total . | . . . . Derelict Logs Recovered 1 | . . 1 . Drone Launches . | . . . . Drone Recoveries . | . . . . Exploration | -11 -10 -10 -10 ------------- Run | Yrd Mat Min Sub Turns Passed 1489 | 93 434 844 118 Spaces Moved 1228 | 96 415 610 107 Core 31 | 23 . 3 5 Treads 244 | . . 244 . Legs . | . . . . Wheels 953 | 73 415 363 102 Hover . | . . . . Flight . | . . . . Fastest Speed 50 | 50 80 80 80 Average Speed 100 | 72 80 120 95 Slowest Speed 250 | 80 80 200 250 Overloaded Moves . | . . . . Propulsion Burnouts . | . . . . Robots Hopped . | . . . . Cave-ins Triggered . | . . . . Exploration Rate (%) 42 | 6 62 95 5 Regions Visited 3 Branch Regions 2 Pre-discovered Areas 1 | . . 1 . Known Exits Taken 2 | . 1 1 . Unknown Exits Taken 1 | 1 . . . Scrap Searched 3 | . . 3 . Spaces Dug . | . . . . Terrain Destroyed 25 | . . 25 . Melee . | . . . . Projectile . | . . . . AOE 25 | . . 25 . Terrain Rammed . | . . . . Walls Destroyed . | . . . . Machines Disabled . | . . . . Actions | -11 -10 -10 -10 --------- Run | Yrd Mat Min Sub Total 1425 | 112 484 709 120 Wait 101 | . 31 70 . Move 1225 | 95 414 609 107 Hop . | . . . . Pick Up 31 | 6 11 10 4 Fast Attach . | . . . . Attach 22 | 6 7 7 2 Detach . | . . . . Swap 1 | . . . 1 Drop 13 | 1 3 6 3 Fire 31 | 4 18 6 3 Melee . | . . . . Ram . | . . . . Kick . | . . . . Crush 1 | . . 1 . Escape Stasis . | . . . . Rewire . | . . . . Trap . | . . . . Miscellaneous . | . . . . Route ------- -11/Scrapyard -10/Materials (discovered 4 exits: *Mat x2 / *Min x2) -10/Mines (discovered 3 exits: *Mat x2 / *Sub) -10/Subcaves History --------- Turn | Location | Event 2 | -11/Scrapyard | Met Revision 17 45 | -11/Scrapyard | Discovered new exit (range 8) 94 | -11/Scrapyard | Entered Materials 209 | -10/Materials | Discovered new exit (range 3) 303 | -10/Materials | Build established: Mutant 311 | -10/Materials | Discovered new exit (range 7) 441 | -10/Materials | Discovered new exit (range 7) 448 | -10/Materials | Identified exit to Materials 502 | -10/Materials | Discovered new exit (range 16) 504 | -10/Materials | Identified exit to Mines 528 | -10/Materials | Entered Mines 714 | -10/Mines | Found a damaged Exp. Sensor Array with a note attached 716 | -10/Mines | Found Prototype Device 764 | -10/Mines | Discovered exit to Materials (range 9) 847 | -10/Mines | Build established: Scavenger-Mutant 873 | -10/Mines | Learned Materials stockpile data 1156 | -10/Mines | Discovered exit to Materials (range 9) 1300 | -10/Mines | Core integrity fell below 50% 1311 | -10/Mines | Core integrity fell below 20% 1312 | -10/Mines | Destroyed YI-UF0 1359 | -10/Mines | Learned location of Storage (-8) 1364 | -10/Mines | Discovered new exit (range 8) 1370 | -10/Mines | Identified exit to Subcaves 1372 | -10/Mines | Entered Subcaves 1395 | -10/Subcaves | Ambushed by Subdwellers from Twisted Machinery 1476 | -10/Subcaves | Ambushed by swarm of Subdwellers 1489 | -10/Subcaves | Ambushed by Subdwellers from Twisted Machinery 1490 | -10/Subcaves | Destroyed by 46-ZMM(R) with Subdweller Machine Gun Last Messages --------------- CF-6XK(R) comes tumbling into view. H7-CWZ(h): "The Subs are coming!" JY-F32(R) emerges from the Twisted Machinery. Sub. Monowheel destroyed. 69-077(g): "Sorry we're late! Had another grouchy Sub to deal with. Who's the new fellow?" CF-6XK(R) suffers critical hit (Destroy). CF-6XK(R) destroyed. H7-CWZ(h) suffers critical hit (Meltdown). Acquired Bore Cannon. Imp. Heat Sink destroyed. 46-ZMM(R) emerges from the Twisted Machinery. JY-F32(R) affixes Scrap Shield Fragment to Scrap Shield. MN-KAU(R) suffers critical hit (Destroy). UF-0JE(R) emerges from the Twisted Machinery. HV Slug penetrates MN-KAU(R). 7G-YCR(R) angrily emerges from the Twisted Machinery. Map ----- +----------------------------------------------------+ | ?????????????????????????????????????????????????? | | ?????????????????????????????????######???#####??? | | ?????????????????????????????????# # *#####=# #### | | ?????????????????????????????????# %&&%&!&! # | | ?????????????????????????????????# #%&&[%!# % | | ????????????????????????????????## ########### | | ?????????????????????????? #???# # #????# | | ?????????????????????????" ??## # #?????# # | | ?????????????????????????? #?## #?????# # | | ???????????????????????????? ## #?????# # | | ???????????????????# ???????#" ## ##????# # | | ???????????????????? ?###???#"""" ##??? % | | ????????????????????# # #?##"""" ###??# # | | ????????????????????# # ?# #### ## | | ????????????????????" ## # | | ?????????????????????? "" # # | | ????????????????????#" ## """" ### #?# # | | ????????????????????????### """ ##?## ?? ## | | ????????????????????????### ##??? ??? ?? | | ???????????????????????##" ##??? ??? ?? | | ???????????????????????#" ######??? ???? ?? | | ???????????????????????## ## #????????????? ###?? | | ????????????????????????# ###?????????????#????? | | ?????????????????????#### #????????????????????? | | ????????????????????## # g #????????????????????? | | ????????????????????# g@%##????????????????????? | | ????????????????????# !g#????????????????????? | | ????????????????????#### R#????????????????????? | | ???????????????????????## RR#???????????????????? | | ????????????????????????## R% "??????????????????? | | ?????????????????????????##RRR"#?????????????????? | | ??????????????????????????? #?????????????????? | | ??????????????????????????? #?????????????????? | | ??????????????????????????? #?????????????????? | | ??????????????????????????? #?????????????????? | | ??????????????????????????? #?????????????????? | | ??????????????????????????? #?????????????????? | | ??????????????????????????? #?????????????????? | | ???????????????????????????? #?????????????????? | | ???????????????????????????? ???????????????????? | | ?????????????????????????????????????????????????? | | ?????????????????????????????????????????????????? | | ?????????????????????????????????????????????????? | | ?????????????????????????????????????????????????? | | ?????????????????????????????????????????????????? | | ?????????????????????????????????????????????????? | | ?????????????????????????????????????????????????? | | ?????????????????????????????????????????????????? | | ?????????????????????????????????????????????????? | | ?????????????????????????????????????????????????? | +----------------------------------------------------+ Best States ------------- Heat Dissipation 39 Energy Generation 15 Energy Capacity 250 Matter Stores 300 Matter Capacity 300 Sight Range 16 Terrain Scan Density 10 Evasion (%) 50 Recoil Reduction 1 Item Schematics ----------------- None Robot Schematics ------------------ None Fabricated ------------ Nothing Alien Tech Used ----------------- None Achievements -------------- Let's See Who's Tougher Challenges ------------ None Game ------ Seed MicrowarpDecoderWand Manual? 0 Play Time 00:18:24 Cumulative 1.8 hours Start 2024.04.01 @ 15:49:53 End 2024.04.01 @ 16:19:19 Sessions 1 Manual Loads 0 Difficulty Rogue Special Mode None Game No. 2 Rogue 2 Adventurer 0 Explorer 0 Win Type - Total 0 Types 0/0/0/0/0/0/0/0/0 Lore% 0 Gallery% 5 Achievement% 5 Wizard Run 0 Options --------- Layout 1 ASCII 0 Keyboard 0 Movement Mouse Keybinds 0 Fullscreen 1 Font 24/Smallcaps Map View 50x35 Zoom Use 0% Tactical HUD 0 Map Filters NONE Filters NONE Steam 1 RUN: 7e9252fa-c67c-4725-909c-ed82d80df7a5